fUSD/lending_fUSD_20240514
["ID","MTS","AMOUNT","RATE_DAILY","PERIOD"]
[326973843,1715667048444,-500.0,0.00012876,2]
[326973844,1715667048455,-508.51,0.00012876,2]
[326973845,1715667048467,-502.46266878,0.00012876,2]
[326973846,1715667048478,-500.0,0.00012876,2]
[326973847,1715667048489,-205.34,0.00012876,2]
[326973848,1715667048500,-368.1229696,0.00012876,2]
[326973849,1715667048511,-500.0,0.00012876,2]
[326973850,1715667048522,-500.0,0.00012876,2]
[326973851,1715667048533,-500.0,0.00012876,2]
[326973852,1715667048544,-500.0,0.00012876,2]
[326973853,1715667048555,-515.7590229,0.00012876,2]
[326973854,1715667048566,-521.19858311,0.00012876,2]
[326973855,1715667048586,-509.04735955,0.00012876,2]
[326973856,1715667048598,-639.69747836,0.00012876,2]
[326973857,1715667048610,-500.0,0.00012876,2]
[326973858,1715667048622,-546.02,0.00012876,2]
[326973859,1715667048635,-500.0,0.00012876,2]
[326973860,1715667048647,-523.62725697,0.00012876,2]
[326973861,1715667048660,-513.70136418,0.00012876,2]
[326973862,1715667048671,-543.37,0.00012876,2]
[326973863,1715667048683,-513.87110189,0.00012876,2]
[326973864,1715667048696,-500.0,0.00012876,2]
[326973865,1715667048708,-500.0,0.00012876,2]
[326973866,1715667048720,-513.23763592,0.00012876,2]
[326973867,1715667048731,-230.48901218,0.00012876,2]
[326973868,1715667048743,-514.17997119,0.00012876,2]
[326973869,1715667048754,-575.72,0.00012876,2]
[326973870,1715667048766,-528.48,0.00012876,2]
[326973871,1715667048778,-500.0,0.00012876,2]
[326973872,1715667048789,-570.51,0.00012876,2]
[326973873,1715667048801,-400.0,0.00012876,2]
[326973874,1715667048812,-500.0,0.00012876,2]
[326973875,1715667048830,-500.0,0.00012876,2]
[326973876,1715667048842,-500.0,0.00012876,2]
[326973877,1715667048853,-500.0,0.00012876,2]
[326973878,1715667048864,-500.0,0.00012876,2]
[326973879,1715667048875,-500.0,0.00012876,2]
[326973880,1715667048886,-500.0,0.00012876,2]
[326973881,1715667048897,-510.90220426,0.00012876,2]
[326973882,1715667048907,-500.0,0.00012876,2]
[326973883,1715667048918,-500.0,0.00012876,2]
[326973884,1715667048928,-500.0,0.00012876,2]
[326973885,1715667048939,-505.11364767,0.00012876,2]
[326973886,1715667048949,-500.0,0.00012876,2]
[326973887,1715667048961,-500.0,0.00012876,2]
[326973888,1715667048972,-170.64,0.00012876,2]
[326973889,1715667048983,-573.5,0.00012876,2]
[326973890,1715667048994,-494.0,0.00012876,2]
[326973891,1715667049004,-500.0,0.00012876,2]
[326973892,1715667049015,-500.0,0.00012876,2]
[326973893,1715667049026,-500.0,0.00012876,2]
[326973894,1715667049037,-500.0,0.00012876,2]
[326973895,1715667049048,-478.39,0.00012876,2]
[326973896,1715667049059,-510.7145889,0.00012876,2]
[326973897,1715667049076,-638.00901656,0.00012876,2]
[326973898,1715667049091,-513.50940867,0.00012876,2]
[326973899,1715667049103,-500.0,0.00012876,2]
[326973900,1715667049114,-500.0,0.00012876,2]
[326973901,1715667049127,-500.0,0.00012876,2]
[326973902,1715667049139,-500.0,0.00012876,2]
[326973903,1715667049151,-500.0,0.00012876,2]
[326973904,1715667049163,-516.02114784,0.00012876,2]
[326973905,1715667049175,-500.0,0.00012876,2]
[326973906,1715667049186,-508.2370089,0.00012876,2]
[326973907,1715667049197,-500.0,0.00012876,2]
[326973908,1715667049208,-565.47735862,0.00012876,2]
[326973909,1715667049219,-254.95,0.00012876,2]
[326973910,1715667049230,-500.0,0.00012876,2]
[326973911,1715667049241,-500.0,0.00012876,2]
[326973912,1715667049252,-500.0,0.00012876,2]
[326973913,1715667049263,-500.0,0.00012876,2]
[326973914,1715667049275,-589.26,0.00012876,2]
[326973915,1715667049286,-500.0,0.00012876,2]
[326973916,1715667049297,-511.00878165,0.00012876,2]
[326973917,1715667049308,-500.0,0.00012876,2]
[326973918,1715667049324,-500.0,0.00012876,2]
[326973919,1715667049335,-500.0,0.00012876,2]
[326973920,1715667049345,-500.0,0.00012876,2]
[326973921,1715667049356,-500.0,0.00012876,2]
[326973922,1715667049367,-500.0,0.00012876,2]
[326973923,1715667049378,-500.0,0.00012876,2]
[326973924,1715667049390,-164.23,0.00012876,2]
[326973925,1715667049402,-272.9,0.00012876,2]
[326973926,1715667049412,-269.04,0.00012876,2]
[326973927,1715667049423,-511.57425755,0.00012876,2]
[326973928,1715667049434,-500.0,0.00012876,2]
[326973929,1715667049445,-500.0,0.00012876,2]
[326973930,1715667049456,-218.54605376,0.00012876,2]
[326973931,1715667049467,-508.69130802,0.00012876,2]
[326973932,1715667049479,-516.34187047,0.00012876,2]
[326973933,1715667049490,-500.0,0.00012876,2]
[326973934,1715667049501,-603.92,0.00012876,2]
[326973935,1715667049511,-288.84,0.00012876,2]
[326973936,1715667049523,-500.0,0.00012876,2]
[326973937,1715667049533,-500.0,0.00012876,2]
[326973938,1715667049544,-391.21,0.00012876,2]
[326973939,1715667049555,-500.0,0.00012876,2]
[326973940,1715667049566,-500.0,0.00012876,2]
[326973941,1715667049580,-510.86933084,0.00012876,2]
[326973942,1715667049591,-500.0,0.00012876,2]
[326973943,1715667049602,-500.0,0.00012876,2]
[326973944,1715667049613,-450.86691824,0.00012876,2]
[326973945,1715667049624,-515.19687118,0.00012876,2]
[326973946,1715667049634,-500.0,0.00012876,2]
[326973947,1715667049645,-500.0,0.00012876,2]
[326973948,1715667049656,-511.6616318,0.00012876,2]
[326973949,1715667049667,-507.11200559,0.00012876,2]
[326973950,1715667049946,-500.0,0.00012876,2]
[326973951,1715667049969,-549.99,0.00012876,2]
[326973952,1715667049979,-510.2409881,0.00012876,2]
[326973953,1715667049989,-500.0,0.00012876,2]
[326973954,1715667049999,-541.90050333,0.00012876,2]
[326973955,1715667050009,-500.0,0.00012876,2]
[326973956,1715667050019,-521.05356358,0.00012876,2]
[326973957,1715667050029,-529.68122387,0.00012876,2]
[326973958,1715667050039,-618.71,0.00012876,2]
[326973959,1715667050048,-500.0,0.00012876,2]
[326973960,1715667050058,-500.0,0.00012876,2]
[326973961,1715667050079,-500.0,0.00012876,2]
[326973962,1715667050088,-500.0,0.00012876,2]
[326973963,1715667050097,-500.0,0.00012876,2]
[326973964,1715667050107,-500.0,0.00012876,2]
[326973965,1715667050118,-321.61,0.00012876,2]
[326973966,1715667050128,-500.0,0.00012876,2]
[326973967,1715667050137,-572.97,0.00012876,2]
[326973968,1715667050146,-547.66739686,0.00012876,2]
[326973969,1715667050156,-500.0,0.00012876,2]
[326973970,1715667050166,-500.0,0.00012876,2]
[326973971,1715667050175,-509.83226589,0.00012876,2]
[326973972,1715667050184,-500.0,0.00012876,2]
[326973973,1715667050194,-645.03,0.00012876,2]
[326973974,1715667050203,-508.43392209,0.00012876,2]
[326973975,1715667050213,-581.9,0.00012876,2]
[326973976,1715667050222,-511.61403454,0.00012876,2]
[326973977,1715667050231,-568.22963759,0.00012876,2]
[326973978,1715667050241,-513.40311476,0.00012876,2]
[326973979,1715667050251,-625.3,0.00012876,2]
[326973980,1715667050261,-500.0,0.00012876,2]
[326973981,1715667050270,-349.37,0.00012876,2]
[326973982,1715667050280,-548.39740512,0.00012876,2]
[326973983,1715667050291,-515.05449163,0.00012876,2]
[326973984,1715667050300,-573.7379883,0.00012876,2]
[326973985,1715667050309,-639.65,0.00012876,2]
[326973986,1715667050324,-150.0,0.00012876,2]
[326973987,1715667050334,-500.0,0.00012876,2]
[326973988,1715667050344,-158.83,0.00012876,2]
[326973989,1715667050353,-500.0,0.00012876,2]
[326973990,1715667050363,-500.0,0.00012876,2]
[326973991,1715667050372,-500.0,0.00012876,2]
[326973992,1715667050384,-500.0,0.00012876,2]
[326973993,1715667050394,-500.0,0.00012876,2]
[326973994,1715667050403,-500.0,0.00012876,2]
[326973995,1715667050412,-500.0,0.00012876,2]
[326973996,1715667050422,-519.47,0.00012876,2]
[326973997,1715667050431,-505.21833711,0.00012876,2]
[326973998,1715667050442,-500.0,0.00012876,2]
[326973999,1715667050451,-522.2026378,0.00012876,2]
[326974000,1715667050460,-500.0,0.00012876,2]
[326974001,1715667050470,-500.0,0.00012876,2]
[326974002,1715667050480,-513.41538068,0.00012876,2]
[326974003,1715667050489,-520.63,0.00012876,2]
[326974004,1715667050499,-500.0,0.00012876,2]
[326974005,1715667050508,-500.0,0.00012876,2]
[326974006,1715667050519,-500.0,0.00012876,2]
[326974007,1715667050528,-220.57,0.00012876,2]
[326974008,1715667050538,-500.0,0.00012876,2]
[326974009,1715667050548,-554.38,0.00012876,2]
[326974010,1715667050557,-541.82,0.00012876,2]
[326974011,1715667050567,-500.0,0.00012876,2]
[326974012,1715667050582,-239.21284614,0.00012876,2]
[326974013,1715667050591,-500.0,0.00012876,2]
[326974014,1715667050600,-500.0,0.00012876,2]
[326974015,1715667050609,-302.83,0.00012876,2]
[326974016,1715667050618,-506.37447377,0.00012876,2]
[326974017,1715667050627,-500.0,0.00012876,2]
[326974018,1715667050636,-510.22590778,0.00012876,2]
[326974019,1715667050646,-500.0,0.00012876,2]
[326974020,1715667050655,-503.54596408,0.00012876,2]
[326974021,1715667050664,-500.0,0.00012876,2]
[326974022,1715667050673,-502.97884694,0.00012876,2]
[326974023,1715667050682,-500.0,0.00012876,2]
[326974024,1715667050692,-477.35132127,0.00012876,2]
[326974025,1715667050701,-545.89447656,0.00012876,2]
[326974026,1715667050711,-500.0,0.00012876,2]
[326974027,1715667050720,-434.54023978,0.00012876,2]
[326974028,1715667050730,-539.69,0.00012876,2]
[326974029,1715667050740,-500.0,0.00012876,2]
[326974030,1715667050749,-500.0,0.00012876,2]
[326974031,1715667050759,-500.0,0.00012876,2]
[326974032,1715667050769,-507.61619519,0.00012876,2]
[326974033,1715667050778,-500.0,0.00012876,2]
[326974034,1715667050789,-516.07499138,0.00012876,2]
[326974035,1715667050799,-307.86,0.00012876,2]
[326974036,1715667050808,-500.0,0.00012876,2]
[326974037,1715667050817,-515.19120797,0.00012876,2]
[326974038,1715667050831,-500.0,0.00012876,2]
[326974039,1715667050839,-500.0,0.00012876,2]
[326974040,1715667050848,-500.0,0.00012876,2]
[326974041,1715667050858,-500.0,0.00012876,2]
[326974042,1715667050868,-500.0,0.00012876,2]
[326974043,1715667050877,-500.0,0.00012876,2]
[326974044,1715667050886,-500.0,0.00012876,2]
[326974045,1715667050895,-500.0,0.00012876,2]
[326974046,1715667050904,-500.0,0.00012876,2]
[326974047,1715667050914,-531.93245425,0.00012876,2]
[326974048,1715667050923,-500.0,0.00012876,2]
[326974049,1715667050933,-500.0,0.00012876,2]
[326974050,1715667050942,-500.0,0.00012876,2]
[326974051,1715667050952,-500.0,0.00012876,2]
[326974052,1715667050961,-500.0,0.00012876,2]
[326974053,1715667050971,-500.0,0.00012876,2]
[326974054,1715667050980,-500.0,0.00012876,2]
[326974055,1715667050990,-500.0,0.00012876,2]
[326974056,1715667051000,-500.0,0.00012876,2]
[326974057,1715667051009,-500.0,0.00012876,2]
[326974058,1715667051018,-500.0,0.00012876,2]
[326974059,1715667051028,-525.02,0.00012876,2]
[326974060,1715667051038,-500.0,0.00012876,2]
[326974061,1715667051047,-200.35,0.00012876,2]
[326974062,1715667051056,-500.0,0.00012876,2]
[326974063,1715667051067,-500.0,0.00012876,2]
[326974064,1715667051080,-500.0,0.00012876,2]
[326974065,1715667051093,-500.0,0.00012876,2]
[326974066,1715667051103,-452.23,0.00012876,2]
[326974067,1715667051111,-500.0,0.00012876,2]
[326974068,1715667051120,-357.72,0.00012876,2]
[326974069,1715667051131,-500.0,0.00012876,2]
[326974070,1715667051140,-500.0,0.00012876,2]
[326974071,1715667051149,-481.11,0.00012876,2]
[326974072,1715667051159,-500.0,0.00012876,2]
[326974073,1715667051168,-513.68124985,0.00012876,2]
[326974074,1715667051178,-494.51,0.00012876,2]
[326974075,1715667051187,-500.0,0.00012876,2]
[326974076,1715667051197,-452.21138109,0.00012876,2]
[326974077,1715667051207,-500.0,0.00012876,2]
[326974078,1715667051217,-408.63,0.00012876,2]
[326974079,1715667051226,-449.96071164,0.00012876,2]
[326974080,1715667051236,-510.24507139,0.00012876,2]
[326974081,1715667051245,-512.14821969,0.00012876,2]
[326974082,1715667051256,-515.15213849,0.00012876,2]
[326974083,1715667051265,-541.13481531,0.00012876,2]
[326974084,1715667051274,-558.63636296,0.00012876,2]
[326974085,1715667051284,-500.0,0.00012876,2]
[326974086,1715667051293,-500.0,0.00012876,2]
[326974087,1715667051303,-500.0,0.00012876,2]
[326974088,1715667051312,-500.0,0.00012876,2]
[326974089,1715667051325,-500.0,0.00012876,2]
[326974090,1715667051334,-189.45,0.00012876,2]
[326974091,1715667051343,-511.45651312,0.00012876,2]
[326974092,1715667051352,-500.0,0.00012876,2]
[326974093,1715667051361,-511.94522674,0.00012876,2]
[326974094,1715667051370,-500.0,0.00012876,2]
[326974095,1715667051379,-625.13,0.00012876,2]
[326974096,1715667051388,-252.88,0.00012876,2]
[326974097,1715667051397,-500.0,0.00012876,2]
[326974098,1715667051407,-551.03299498,0.00012876,2]
[326974099,1715667051416,-500.0,0.00012876,2]
[326974100,1715667051425,-644.74,0.00012876,2]
[326974101,1715667051435,-500.0,0.00012876,2]
[326974102,1715667051446,-244.12,0.00012876,2]
[326974103,1715667051457,-509.63265378,0.00012876,2]
[326974104,1715667051466,-514.40125005,0.00012876,2]
[326974105,1715667051476,-500.0,0.00012876,2]
[326974106,1715667051485,-500.0,0.00012876,2]
[326974107,1715667051495,-510.14051907,0.00012876,2]
[326974108,1715667051504,-516.87480655,0.00012876,2]
[326974109,1715667051514,-500.0,0.00012876,2]
[326974110,1715667051523,-513.49161343,0.00012876,2]
[326974111,1715667051533,-514.02464456,0.00012876,2]
[326974112,1715667051542,-507.11141355,0.00012876,2]
[326974113,1715667051551,-512.43989894,0.00012876,2]
[326974114,1715667051561,-513.15443349,0.00012876,2]
[326974115,1715667051572,-510.59689315,0.00012876,2]
[326974116,1715667051581,-500.0,0.00012876,2]
[326974117,1715667051590,-507.55896111,0.00012876,2]
[326974118,1715667051599,-500.0,0.00012876,2]
[326974119,1715667051608,-500.0,0.00012876,2]
[326974120,1715667051617,-546.16,0.00012876,2]
[326974121,1715667051626,-500.0,0.00012876,2]
[326974122,1715667051635,-500.0,0.00012876,2]
[326974123,1715667051644,-288.72,0.00012876,2]
[326974124,1715667051653,-515.09686129,0.00012876,2]
[326974125,1715667051663,-627.34758637,0.00012876,2]
[326974126,1715667051672,-500.0,0.00012876,2]
[326974127,1715667051681,-294.74,0.00012876,2]
[326974128,1715667051690,-523.57745953,0.00012876,2]
[326974129,1715667051699,-500.0,0.00012876,2]
[326974130,1715667051709,-509.1402531,0.00012876,2]
[326974131,1715667051718,-507.14694075,0.00012876,2]
[326974132,1715667051727,-500.0,0.00012876,2]
[326974133,1715667051736,-621.96,0.00012876,2]
[326974134,1715667051746,-511.40775812,0.00012876,2]
[326974135,1715667051756,-511.532669,0.00012876,2]
[326974136,1715667051765,-500.0,0.00012876,2]
[326974137,1715667051775,-508.87986348,0.00012876,2]
[326974138,1715667051784,-515.95816822,0.00012876,2]
[326974139,1715667051793,-500.0,0.00012876,2]
[326974140,1715667051803,-511.39295293,0.00012876,2]
[326974141,1715667051812,-500.0,0.00012876,2]
[326974142,1715667051826,-500.0,0.00012876,2]
[326974143,1715667051835,-369.74,0.00012876,2]
[326974144,1715667051844,-500.0,0.00012876,2]
[326974145,1715667051853,-509.34011619,0.00012876,2]
[326974146,1715667051862,-500.0,0.00012876,2]
[326974147,1715667051870,-563.74705543,0.00012876,2]
[326974148,1715667051879,-508.64978739,0.00012876,2]
[326974149,1715667051889,-500.0,0.00012876,2]
[326974150,1715667051898,-521.36421578,0.00012876,2]
[326974151,1715667051907,-500.0,0.00012876,2]
[326974152,1715667051916,-500.0,0.00012876,2]
[326974153,1715667051925,-512.19750797,0.00012876,2]
[326974154,1715667051934,-389.55,0.00012876,2]
[326974155,1715667051943,-500.0,0.00012876,2]
[326974156,1715667051953,-601.4,0.00012876,2]
[326974157,1715667051963,-514.94483976,0.00012876,2]
[326974158,1715667051972,-500.0,0.00012876,2]
[326974159,1715667051981,-500.0,0.00012876,2]
[326974160,1715667051991,-167.34,0.00012876,2]
[326974161,1715667052000,-500.0,0.00012876,2]
[326974162,1715667052010,-514.18796876,0.00012876,2]
[326974163,1715667052019,-517.49079626,0.00012876,2]
[326974164,1715667052028,-488.02440144,0.00012876,2]
[326974165,1715667052038,-513.00971405,0.00012876,2]
[326974166,1715667052047,-511.90544777,0.00012876,2]
[326974167,1715667052057,-500.0,0.00012876,2]
[326974168,1715667052072,-175.79,0.00012876,2]
[326974169,1715667052082,-500.0,0.00012876,2]
[326974170,1715667052091,-577.19408655,0.00012876,2]
[326974171,1715667052101,-500.0,0.00012876,2]
[326974172,1715667052111,-500.0,0.00012876,2]
[326974173,1715667052120,-500.0,0.00012876,2]
[326974174,1715667052131,-500.0,0.00012876,2]
[326974175,1715667052140,-627.08057322,0.00012876,2]
[326974176,1715667052151,-513.36782992,0.00012876,2]
[326974177,1715667052160,-513.27861442,0.00012876,2]
[326974178,1715667052169,-500.0,0.00012876,2]
[326974179,1715667052180,-509.80271262,0.00012876,2]
[326974180,1715667052190,-550.26,0.00012876,2]
[326974181,1715667052199,-522.11550642,0.00012876,2]
[326974182,1715667052208,-500.0,0.00012876,2]
[326974183,1715667052217,-317.3,0.00012876,2]
[326974184,1715667052226,-544.50268036,0.00012876,2]
[326974185,1715667052236,-500.0,0.00012876,2]
[326974186,1715667052246,-500.0,0.00012876,2]
[326974187,1715667052255,-509.01543101,0.00012876,2]
[326974188,1715667052266,-633.5340375,0.00012876,2]
[326974189,1715667052275,-500.0,0.00012876,2]
[326974190,1715667052284,-514.84931133,0.00012876,2]
[326974191,1715667052293,-500.0,0.00012876,2]
[326974192,1715667052304,-500.0,0.00012876,2]
[326974193,1715667052314,-500.0,0.00012876,2]
[326974194,1715667052327,-615.36,0.00012876,2]
[326974195,1715667052336,-500.0,0.00012876,2]
[326974196,1715667052345,-514.05100793,0.00012876,2]
[326974197,1715667052355,-516.8779586,0.00012876,2]
[326974198,1715667052364,-440.85017148,0.00012876,2]
[326974199,1715667052374,-512.12521653,0.00012876,2]
[326974200,1715667052384,-500.0,0.00012876,2]
[326974201,1715667052394,-508.86724575,0.00012876,2]
[326974202,1715667052403,-500.0,0.00012876,2]
[326974203,1715667052412,-500.0,0.00012876,2]
[326974204,1715667052421,-513.64842363,0.00012876,2]
[326974205,1715667052431,-500.0,0.00012876,2]
[326974206,1715667052441,-182.79,0.00012876,2]
[326974207,1715667052450,-500.0,0.00012876,2]
[326974208,1715667052460,-172.63,0.00012876,2]
[326974209,1715667052469,-500.0,0.00012876,2]
[326974210,1715667052478,-509.42591736,0.00012876,2]
[326974211,1715667052488,-508.75532619,0.00012876,2]
[326974212,1715667052497,-533.85,0.00012876,2]
[326974213,1715667052506,-500.0,0.00012876,2]
[326974214,1715667052516,-232.43,0.00012876,2]
[326974215,1715667052526,-500.0,0.00012876,2]
[326974216,1715667052535,-500.0,0.00012876,2]
[326974217,1715667052543,-256.94,0.00012876,2]
[326974218,1715667052553,-506.67597731,0.00012876,2]
[326974219,1715667052562,-500.0,0.00012876,2]
[326974220,1715667052574,-329.75,0.00012876,2]
[326974221,1715667052583,-500.0,0.00012876,2]
[326974222,1715667052592,-500.0,0.00012876,2]
[326974223,1715667052601,-202.19,0.00012876,2]
[326974224,1715667052610,-509.32032267,0.00012876,2]
[326974225,1715667052619,-500.0,0.00012876,2]
[326974226,1715667052629,-500.0,0.00012876,2]
[326974227,1715667052639,-500.0,0.00012876,2]
[326974228,1715667052649,-500.0,0.00012876,2]
[326974229,1715667052659,-472.99,0.00012876,2]
[326974230,1715667052669,-525.34082525,0.00012876,2]
[326974231,1715667052679,-500.0,0.00012876,2]
[326974232,1715667052688,-270.22458514,0.00012876,2]
[326974233,1715667052698,-515.37799203,0.00012876,2]
[326974234,1715667052708,-515.18944665,0.00012876,2]
[326974235,1715667052719,-500.0,0.00012876,2]
[326974236,1715667052730,-500.0,0.00012876,2]
[326974237,1715667052739,-500.0,0.00012876,2]
[326974238,1715667052749,-450.17,0.00012876,2]
[326974239,1715667052758,-170.45126489,0.00012876,2]
[326974240,1715667052767,-500.0,0.00012876,2]
[326974241,1715667052776,-500.0,0.00012876,2]
[326974242,1715667052786,-481.01,0.00012876,2]
[326974243,1715667052795,-500.0,0.00012876,2]
[326974244,1715667052805,-500.0,0.00012876,2]
[326974245,1715667052817,-500.0,0.00012876,2]
[326974246,1715667052828,-500.0,0.00012876,2]
[326974247,1715667052837,-198.72,0.00012876,2]
[326974248,1715667052846,-574.3417614,0.00012876,2]
[326974249,1715667052855,-506.45026712,0.00012876,2]
[326974250,1715667052865,-500.0,0.00012876,2]
[326974251,1715667052874,-517.08,0.00012876,2]
[326974252,1715667052884,-514.42802262,0.00012876,2]
[326974253,1715667052893,-500.0,0.00012876,2]
[326974254,1715667052903,-500.0,0.00012876,2]
[326974255,1715667052912,-351.77,0.00012876,2]
[326974256,1715667052921,-500.0,0.00012876,2]
[326974257,1715667052931,-500.0,0.00012876,2]
[326974258,1715667052940,-500.0,0.00012876,2]
[326974259,1715667052950,-500.0,0.00012876,2]
[326974260,1715667052960,-500.0,0.00012876,2]
[326974261,1715667052969,-500.0,0.00012876,2]
[326974262,1715667052979,-500.0,0.00012876,2]
[326974263,1715667052988,-538.99317156,0.00012876,2]
[326974264,1715667052996,-516.28297382,0.00012876,2]
[326974265,1715667053006,-516.22942702,0.00012876,2]
[326974266,1715667053015,-500.0,0.00012876,2]
[326974267,1715667053024,-518.68100969,0.00012876,2]
[326974268,1715667053033,-511.02451315,0.00012876,2]
[326974269,1715667053043,-500.0,0.00012876,2]
[326974270,1715667053052,-514.39729076,0.00012876,2]
[326974271,1715667053062,-510.94366826,0.00012876,2]
[326974272,1715667053077,-500.0,0.00012876,2]
[326974273,1715667053086,-500.0,0.00012876,2]
[326974274,1715667053095,-212.60829308,0.00012876,2]
[326974275,1715667053104,-513.16927172,0.00012876,2]
[326974276,1715667053114,-549.55902331,0.00012876,2]
[326974277,1715667053123,-639.09048906,0.00012876,2]
[326974278,1715667053132,-513.19025422,0.00012876,2]
[326974279,1715667053141,-500.0,0.00012876,2]
[326974280,1715667053151,-501.91319136,0.00012876,2]
[326974281,1715667053161,-507.72066346,0.00012876,2]
[326974282,1715667053170,-500.0,0.00012876,2]
[326974283,1715667053180,-511.70244589,0.00012876,2]
[326974284,1715667053189,-500.0,0.00012876,2]
[326974285,1715667053198,-500.0,0.00012876,2]
[326974286,1715667053207,-504.41,0.00012876,2]
[326974287,1715667053216,-513.90796422,0.00012876,2]
[326974288,1715667053225,-567.69441775,0.00012876,2]
[326974289,1715667053381,-500.0,0.00012876,2]
[326974290,1715667053390,-605.19,0.00012876,2]
[326974291,1715667053400,-507.18116562,0.00012876,2]
[326974292,1715667053408,-500.0,0.00012876,2]
[326974293,1715667053418,-500.0,0.00012876,2]
[326974294,1715667053426,-500.0,0.00012876,2]
[326974295,1715667053436,-510.24880074,0.00012876,2]
[326974296,1715667053446,-500.0,0.00012876,2]
[326974297,1715667053456,-350.19,0.00012876,2]
[326974298,1715667053466,-507.51836306,0.00012876,2]
[326974299,1715667053476,-500.0,0.00012876,2]
[326974300,1715667053487,-500.0,0.00012876,2]
[326974301,1715667053496,-516.87,0.00012876,2]
[326974302,1715667053507,-500.0,0.00012876,2]
[326974303,1715667053516,-376.66,0.00012876,2]
[326974304,1715667053525,-514.58133453,0.00012876,2]
[326974305,1715667053534,-516.89276308,0.00012876,2]
[326974306,1715667053544,-507.85069271,0.00012876,2]
[326974307,1715667053553,-229.40714847,0.00012876,2]
[326974308,1715667053563,-494.22207111,0.00012876,2]
[326974309,1715667053576,-510.5281114,0.00012876,2]
[326974310,1715667053586,-500.0,0.00012876,2]
[326974311,1715667053595,-500.0,0.00012876,2]
[326974312,1715667053605,-521.21253169,0.00012876,2]
[326974313,1715667053615,-508.00370144,0.00012876,2]
[326974314,1715667053625,-500.0,0.00012876,2]
[326974315,1715667053634,-206.63309602,0.00012876,2]
[326974316,1715667053643,-528.43,0.00012876,2]
[326974317,1715667053652,-500.0,0.00012876,2]
[326974318,1715667053662,-469.0632467,0.00012876,2]
[326974319,1715667053673,-536.7,0.00012876,2]
[326974320,1715667053683,-500.0,0.00012876,2]
[326974321,1715667053692,-500.0,0.00012876,2]
[326974322,1715667053701,-186.98730001,0.00012876,2]
[326974323,1715667053711,-576.95,0.00012876,2]
[326974324,1715667053721,-500.0,0.00012876,2]
[326974325,1715667053729,-500.0,0.00012876,2]
[326974326,1715667053739,-500.0,0.00012876,2]
[326974327,1715667053748,-583.06329954,0.00012876,2]
[326974328,1715667053757,-502.63526852,0.00012876,2]
[326974329,1715667053766,-511.1455731,0.00012876,2]
[326974330,1715667053775,-170.85993338,0.00012876,2]
[326974331,1715667053784,-511.21440575,0.00012876,2]
[326974332,1715667053794,-414.07467484,0.00012876,2]
[326974333,1715667053803,-500.0,0.00012876,2]
[326974334,1715667053812,-500.0,0.00012876,2]
[326974335,1715667053825,-500.0,0.00012876,2]
[326974336,1715667053835,-508.87588316,0.00012876,2]
[326974337,1715667053844,-509.42796349,0.00012876,2]
[326974338,1715667053854,-568.06796445,0.00012876,2]
[326974339,1715667053862,-500.0,0.00012876,2]
[326974340,1715667053872,-500.0,0.00012876,2]
[326974341,1715667053881,-569.73,0.00012876,2]
[326974342,1715667053890,-2000.0,0.00012879,2]